fUSD/lending_fUSD_20260106
["ID","MTS","AMOUNT","RATE_DAILY","PERIOD"]
[400592725,1767736249384,-3325.85,0.000428,30]
[400592728,1767736249398,-300.0,0.00042805,2]
[400592730,1767736249413,-833.0,0.00042822,16]
[400592733,1767736249427,-300.0,0.00042822,2]
[400592735,1767736249440,-300.0,0.00042825,2]
[400592738,1767736249456,-300.0,0.00042835,2]
[400592740,1767736249471,-300.0,0.00042868,2]
[400592743,1767736249485,-300.0,0.00042872,2]
[400592746,1767736249499,-300.0,0.00042873,2]
[400592748,1767736249514,-300.0,0.00042877,2]
[400592751,1767736249527,-300.0,0.00042883,2]
[400592753,1767736249542,-300.070539,0.00042887,114]
[400592756,1767736249557,-300.0,0.00042889,2]
[400592759,1767736249571,-300.0,0.00042893,2]
[400592761,1767736249585,-300.0,0.00042896,2]
[400592764,1767736249600,-300.0,0.00042896,2]
[400592766,1767736249614,-300.0,0.00042897,2]
[400592769,1767736249628,-300.0,0.00042897,2]
[400592771,1767736249643,-300.0,0.000429,2]
[400592774,1767736249658,-1119.83629842,0.000429,120]
[400592777,1767736249679,-3466.0,0.00042913,2]
[400592779,1767736249690,-433.0,0.00042913,2]
[400592781,1767736249699,-1266.0,0.00042913,2]
[400592783,1767736249709,-4817.0,0.00042913,2]
[400592785,1767736249719,-594.31143604,0.00042921,120]
[400592787,1767736249728,-300.0,0.00042928,2]
[400592789,1767736249738,-300.0,0.00042929,2]
[400592792,1767736249747,-222.51,0.00042932,30]
[400592820,1767736249997,-150.7,0.00042932,30]
[400592823,1767736250018,-439.29698496,0.00042933,30]
[400592826,1767736250035,-581.45000001,0.00042933,30]
[400592828,1767736250044,-1081.82651881,0.00042933,30]
[400592830,1767736250053,-2433.2264,0.00042935,120]
[400592832,1767736250062,-300.0,0.00042938,2]
[400592834,1767736250071,-300.0,0.0004294,2]
[400592836,1767736250081,-300.0,0.00042955,2]
[400592838,1767736250091,-300.0,0.00042975,2]
[400592840,1767736250099,-300.0,0.00042976,2]
[400592842,1767736250109,-300.0,0.00042987,2]
[400592844,1767736250118,-2282.7389,0.00043,120]
[400592846,1767736250127,-152.0,0.00043,120]
[400592848,1767736250136,-150.0,0.00043,120]
[400592850,1767736250146,-150.1,0.00043,2]
[400592852,1767736250154,-150.1,0.00043,2]
[400592854,1767736250163,-150.1,0.00043,2]
[400592856,1767736250172,-163.41007833,0.00043,2]
[400592858,1767736250181,-158.0,0.00043,90]
[400592860,1767736250190,-150.0,0.00043,120]
[400592862,1767736250199,-1021.0,0.00043,30]
[400592864,1767736250208,-2000.0,0.00043,120]
[400592865,1767736250217,-87743.27,0.00043,2]
[400592867,1767736250228,-168.0,0.00043,90]
[400592869,1767736250237,-300.0,0.00043003,2]
[400592872,1767736250247,-25000.0,0.00043009,15]
[400592873,1767736250256,-300.0,0.00043011,2]
[400592875,1767736250265,-158.0,0.00043014,90]
[400592877,1767736250275,-300.0,0.00043017,2]
[400592880,1767736250284,-25000.0,0.00043018,15]
[400592882,1767736250293,-300.0,0.00043021,2]
[400592883,1767736250302,-25000.0,0.00043027,15]
[400592886,1767736250312,-300.0,0.00043028,2]
[400592888,1767736250322,-300.0,0.00043035,2]
[400592889,1767736250332,-25000.0,0.00043035,15]
[400592892,1767736250341,-25000.0,0.00043044,15]
[400592894,1767736250351,-2483.2703733,0.00043046,30]
[400592896,1767736250360,-3453.95439,0.0004305,120]
[400592897,1767736250369,-3453.9544,0.0004305,120]
[400592899,1767736250378,-3453.9544,0.0004305,120]
[400592902,1767736250387,-3453.9544,0.0004305,120]
[400592904,1767736250399,-3453.9544,0.0004305,120]
[400592906,1767736250408,-25000.0,0.00043053,15]
[400592908,1767736250417,-299.73918347,0.00043053,120]
[400592910,1767736250427,-300.0,0.00043058,2]
[400592912,1767736250436,-21628.30166643,0.00043059,15]
[400592914,1767736250445,-300.0,0.00043061,2]
[400592916,1767736250454,-25000.0,0.00043062,15]
[400592918,1767736250463,-300.0,0.00043063,2]
[400592920,1767736250472,-300.0,0.00043072,2]
[400592922,1767736250481,-300.0,0.00043075,2]
[400592924,1767736250491,-429.16442607,0.00043078,2]
[400592926,1767736250500,-300.0,0.0004308,2]
[400592928,1767736250510,-300.0,0.00043085,2]
[400592930,1767736250519,-300.0,0.00043086,2]
[400592932,1767736250528,-300.0,0.0004309,2]
[400592934,1767736250537,-300.0,0.00043093,2]
[400592936,1767736250546,-300.0,0.00043098,2]
[400592938,1767736250555,-300.0,0.000431,2]
[400592940,1767736250564,-3221.72,0.000431,30]
[400592942,1767736250573,-3325.85,0.000431,30]
[400592944,1767736250582,-300.0,0.00043106,2]
[400592946,1767736250591,-300.0,0.00043108,2]
[400592948,1767736250600,-300.0,0.00043117,2]
[400592950,1767736250609,-300.0,0.00043124,2]
[400592952,1767736250618,-300.0,0.00043124,2]
[400592954,1767736250627,-300.0,0.00043127,2]
[400592956,1767736250637,-300.0,0.00043131,2]
[400592958,1767736250646,-300.0,0.00043133,2]
[400592960,1767736250655,-300.0,0.00043135,2]
[400592962,1767736250664,-300.0,0.00043137,2]
[400592964,1767736250674,-162.0,0.0004314,16]
[400592966,1767736250684,-300.0,0.00043141,2]
[400592968,1767736250693,-2500.0,0.00043157,120]
[400592970,1767736250704,-2500.0,0.00043157,120]
[400592972,1767736250713,-2500.0,0.00043157,120]
[400592974,1767736250722,-2500.0,0.00043157,120]
[400592976,1767736250732,-300.0,0.00043163,2]
[400592978,1767736250742,-300.0,0.00043178,2]
[400592980,1767736250751,-300.0,0.00043179,2]
[400592982,1767736250761,-300.0,0.00043192,2]
[400592984,1767736250770,-300.0,0.00043193,2]
[400592986,1767736250779,-1000.0,0.000432,120]
[400592988,1767736250789,-300.0,0.00043211,2]
[400592990,1767736250798,-300.0,0.00043214,2]
[400592992,1767736250808,-3836.0,0.00043216,30]
[400592994,1767736250818,-300.0,0.00043218,2]
[400592996,1767736250827,-300.0,0.00043218,2]
[400592998,1767736250836,-300.0,0.00043244,2]
[400593000,1767736250846,-300.0,0.00043254,2]
[400593003,1767736250856,-300.0,0.00043259,2]
[400593005,1767736250865,-300.0,0.00043263,2]
[400593007,1767736250875,-300.0,0.00043268,2]
[400593009,1767736250884,-165.71408053,0.0004327,120]
[400593011,1767736250893,-300.0,0.00043274,2]
[400593013,1767736250903,-500.0,0.00043288,10]
[400593015,1767736250912,-300.0,0.00043297,2]
[400593017,1767736250922,-232.48757784,0.00043298,120]
[400593019,1767736250931,-300.0,0.00043299,2]
[400593021,1767736250941,-2346.47,0.000433,120]
[400593022,1767736250954,-1008.2,0.000433,14]
[400593025,1767736250965,-300.0,0.00043307,2]
[400593027,1767736250975,-300.0,0.00043314,2]
[400593029,1767736250985,-300.0,0.00043335,2]
[400593031,1767736250995,-300.0,0.00043337,2]
[400593033,1767736251005,-300.0,0.00043338,2]
[400593035,1767736251015,-300.0,0.00043347,2]
[400593037,1767736251029,-300.0,0.00043359,2]
[400593039,1767736251040,-300.0,0.0004336,2]
[400593041,1767736251049,-300.0,0.00043368,2]
[400593043,1767736251059,-5960.32232019,0.00043373,15]
[400593045,1767736251068,-1707.79145292,0.00043373,15]
[400593047,1767736251077,-477.82498524,0.00043373,28]
[400593049,1767736251086,-11723.34108176,0.00043373,2]
[400593051,1767736251096,-429.16442607,0.00043373,2]
[400593053,1767736251106,-300.0,0.00043374,2]
[400593055,1767736251115,-300.0,0.00043374,2]
[400593057,1767736251124,-167.99433605,0.00043379,120]
[400593059,1767736251133,-374.62342154,0.00043379,11]
[400593061,1767736251142,-619.90673469,0.00043379,120]
[400593063,1767736251151,-5400.0,0.00043381,7]
[400593065,1767736251160,-300.0,0.00043386,2]
[400593067,1767736251169,-10000.0,0.00043388,2]
[400593069,1767736251179,-300.0,0.00043389,2]
[400593071,1767736251188,-300.0,0.0004339,2]
[400593073,1767736251198,-300.0,0.00043394,2]
[400593075,1767736251207,-2000.0,0.00043399,120]
[400593077,1767736251216,-150.41,0.000434,90]
[400593079,1767736251225,-15480.11203971,0.000434,30]
[400593081,1767736251235,-706.05,0.000434,120]
[400593083,1767736251244,-152.0,0.000434,120]
[400593085,1767736251253,-150.0,0.000434,66]
[400593087,1767736251263,-189.6,0.000434,27]
[400593089,1767736251272,-300.0,0.000434,2]
[400593091,1767736251281,-253.0,0.000434,42]
[400593093,1767736251291,-300.0,0.00043403,2]
[400593095,1767736251300,-300.0,0.00043405,2]
[400593096,1767736251309,-300.0,0.00043406,2]
[400593097,1767736251318,-300.0,0.0004341,2]
[400593098,1767736251328,-300.0,0.00043412,2]
[400593099,1767736251337,-300.0,0.00043426,2]
[400593100,1767736251347,-300.0,0.00043426,2]
[400593101,1767736251356,-300.0,0.00043435,2]
[400593102,1767736251365,-1000.0,0.00043445,120]
[400593103,1767736251374,-300.0,0.00043445,2]
[400593104,1767736251383,-500.0,0.00043451,120]
[400593105,1767736251393,-500.0,0.00043451,30]
[400593107,1767736251402,-500.0,0.00043451,30]
[400593109,1767736251411,-500.0,0.00043451,120]
[400593111,1767736251421,-1000.0,0.00043455,120]
[400593113,1767736251430,-2500.0,0.00043457,120]
[400593115,1767736251439,-2562.08208434,0.00043457,120]
[400593117,1767736251448,-505.45524994,0.00043463,7]
[400593119,1767736251457,-505.45524994,0.00043463,7]
[400593121,1767736251467,-1000.0,0.00043465,120]
[400593123,1767736251476,-200.0,0.00043468,120]
[400593125,1767736251486,-151.0,0.0004347,120]
[400593127,1767736251495,-400.0,0.0004347,3]
[400593129,1767736251504,-400.0,0.0004347,3]
[400593131,1767736251514,-704.85854174,0.0004347,3]
[400593133,1767736251523,-151.0,0.0004347,120]
[400593135,1767736251533,-461.76650521,0.00043472,2]
[400593137,1767736251542,-300.0,0.00043472,30]
[400593139,1767736251551,-300.0,0.00043472,30]
[400593141,1767736251560,-300.0,0.00043472,30]
[400593143,1767736251569,-300.0,0.00043472,30]
[400593145,1767736251579,-300.0,0.00043472,30]
[400593147,1767736251588,-300.0,0.00043472,30]
[400593149,1767736251598,-300.0,0.00043472,30]
[400593151,1767736251607,-300.0,0.00043472,30]
[400593153,1767736251617,-300.0,0.00043472,30]
[400593155,1767736251626,-300.0,0.00043472,30]
[400593157,1767736251635,-666.0,0.00043472,30]
[400593159,1767736251644,-666.0,0.00043472,30]
[400593161,1767736251653,-300.0,0.00043472,30]
[400593163,1767736251662,-300.0,0.00043472,30]
[400593164,1767736251671,-151.0,0.00043473,120]
[400593166,1767736251680,-151.0,0.00043473,120]
[400593168,1767736251689,-151.0,0.00043473,120]
[400593170,1767736251698,-151.0,0.00043473,120]
[400593172,1767736251707,-151.0,0.00043473,120]
[400593174,1767736251716,-167.040625,0.00043473,120]
[400593177,1767736251726,-151.0,0.00043473,120]
[400593179,1767736251735,-151.0,0.00043473,120]
[400593180,1767736251744,-151.0,0.00043473,120]
[400593182,1767736251753,-151.0,0.00043473,120]
[400593185,1767736251762,-151.0,0.00043473,120]
[400593186,1767736251772,-151.0,0.00043473,120]
[400593189,1767736251781,-151.0,0.00043473,120]
[400593191,1767736251790,-151.0,0.00043473,120]
[400593192,1767736251799,-167.193054,0.00043473,120]
[400593195,1767736251809,-151.0,0.00043473,60]
[400593196,1767736251819,-151.0,0.00043473,60]
[400593198,1767736251828,-151.0,0.00043473,120]
[400593201,1767736251838,-151.0,0.00043473,60]
[400593203,1767736251848,-151.0,0.00043473,120]
[400593205,1767736251858,-151.0,0.00043473,60]
[400593207,1767736251867,-188.179526,0.00043473,120]
[400593209,1767736251877,-151.0,0.00043473,60]
[400593211,1767736251885,-151.0,0.00043473,60]
[400593212,1767736251895,-151.0,0.00043473,60]
[400593215,1767736251904,-190.275926,0.00043473,60]
[400593217,1767736251919,-585.2606,0.00043473,120]
[400593219,1767736251928,-585.2606,0.00043473,120]
[400593221,1767736251937,-585.2606,0.00043473,120]
[400593223,1767736251951,-585.2606,0.00043473,120]
[400593225,1767736251960,-585.2606,0.00043473,120]
[400593227,1767736251970,-585.2606,0.00043473,120]
[400593229,1767736251979,-585.2606,0.00043473,120]
[400593231,1767736251990,-151.0,0.00043473,120]
[400593233,1767736251998,-151.0,0.00043473,120]
[400593235,1767736252007,-585.2606,0.00043473,120]
[400593237,1767736252018,-151.0,0.00043473,120]
[400593239,1767736252028,-151.0,0.00043473,120]
[400593241,1767736252037,-585.2606,0.00043473,120]
[400593243,1767736252046,-151.0,0.00043473,120]
[400593245,1767736252055,-585.2606,0.00043473,120]
[400593247,1767736252064,-151.0,0.00043473,120]
[400593249,1767736252074,-585.2606,0.00043473,120]
[400593251,1767736252084,-151.0,0.00043473,120]
[400593253,1767736252093,-151.0,0.00043473,120]
[400593255,1767736252102,-585.2606,0.00043473,120]
[400593257,1767736252111,-151.0,0.00043473,120]
[400593259,1767736252120,-151.0,0.00043473,120]
[400593260,1767736252129,-585.2606,0.00043473,120]
[400593263,1767736252139,-151.0,0.00043473,120]
[400593265,1767736252148,-151.0,0.00043473,120]
[400593267,1767736252157,-585.2606,0.00043473,120]
[400593268,1767736252166,-151.0,0.00043473,120]
[400593271,1767736252175,-151.0,0.00043473,120]
[400593273,1767736252184,-585.2606,0.00043473,120]
[400593274,1767736252194,-151.0,0.00043473,120]
[400593276,1767736252203,-151.0,0.00043473,120]
[400593278,1767736252212,-151.0,0.00043473,120]
[400593281,1767736252223,-585.2606,0.00043473,120]
[400593282,1767736252232,-151.0,0.00043473,120]
[400593285,1767736252242,-151.0,0.00043473,120]
[400593286,1767736252251,-585.2606,0.00043473,120]
[400593288,1767736252261,-251.72549,0.00043473,120]
[400593290,1767736252271,-585.2606,0.00043473,120]
[400593293,1767736252281,-151.0,0.00043473,120]
[400593294,1767736252290,-151.0,0.00043473,120]
[400593297,1767736252300,-585.2606,0.00043473,120]
[400593299,1767736252310,-151.0,0.00043473,120]
[400593300,1767736252319,-585.2606,0.00043473,120]
[400593303,1767736252331,-229.393655,0.00043473,120]
[400593304,1767736252341,-182.16976,0.00043473,120]
[400593306,1767736252350,-182.16976,0.00043473,120]
[400593308,1767736252359,-182.16976,0.00043473,120]
[400593310,1767736252368,-182.16976,0.00043473,120]
[400593312,1767736252378,-182.16976,0.00043473,120]
[400593314,1767736252387,-182.16976,0.00043473,120]
[400593316,1767736252396,-182.16976,0.00043473,120]
[400593318,1767736252406,-182.16976,0.00043473,120]
[400593320,1767736252416,-151.0,0.00043473,120]
[400593322,1767736252425,-182.16976,0.00043473,120]
[400593324,1767736252435,-151.0,0.00043473,120]
[400593326,1767736252444,-182.16976,0.00043473,120]
[400593328,1767736252454,-151.0,0.00043473,120]
[400593331,1767736252463,-182.16976,0.00043473,120]
[400593332,1767736252472,-151.0,0.00043473,120]
[400593334,1767736252481,-182.16976,0.00043473,120]
[400593337,1767736252491,-182.16976,0.00043473,120]
[400593339,1767736252500,-182.16976,0.00043473,120]
[400593341,1767736252510,-151.0,0.00043473,120]
[400593342,1767736252519,-182.16976,0.00043473,120]
[400593344,1767736252528,-151.0,0.00043473,120]
[400593346,1767736252538,-182.16976,0.00043473,120]
[400593348,1767736252547,-151.0,0.00043473,120]
[400593350,1767736252556,-182.16976,0.00043473,120]
[400593351,1767736252565,-182.16976,0.00043473,120]
[400593352,1767736252574,-151.0,0.00043473,120]
[400593353,1767736252583,-182.16976,0.00043473,120]
[400593356,1767736252732,-151.0,0.00043473,120]
[400593357,1767736252742,-1158.071836,0.00043473,120]
[400593358,1767736252751,-151.0,0.00043473,120]
[400593359,1767736252761,-182.16976,0.00043473,120]
[400593360,1767736252771,-1158.071836,0.00043473,120]
[400593362,1767736252780,-151.0,0.00043473,120]
[400593363,1767736252789,-1158.071836,0.00043473,120]
[400593364,1767736252799,-177.957707,0.00043473,120]
[400593365,1767736252808,-1158.071836,0.00043473,120]
[400593366,1767736252817,-1158.071836,0.00043473,120]
[400593368,1767736252827,-1158.071836,0.00043473,120]
[400593369,1767736252838,-1158.071836,0.00043473,120]
[400593370,1767736252847,-1158.071836,0.00043473,120]
[400593371,1767736252856,-1158.071836,0.00043473,120]
[400593372,1767736252865,-1158.071836,0.00043473,120]
[400593374,1767736252874,-1158.071836,0.00043473,120]
[400593375,1767736252883,-1158.071836,0.00043473,120]
[400593376,1767736252893,-1158.071836,0.00043473,120]
[400593377,1767736252903,-1158.071836,0.00043473,120]
[400593378,1767736252912,-1158.071836,0.00043473,120]
[400593379,1767736252922,-1158.071836,0.00043473,120]
[400593380,1767736252931,-1158.071836,0.00043473,120]
[400593381,1767736252941,-1158.071836,0.00043473,120]
[400593382,1767736252953,-1158.071836,0.00043473,120]
[400593383,1767736252962,-1158.071836,0.00043473,120]
[400593384,1767736252971,-151.0,0.00043473,120]
[400593385,1767736252980,-191.279642,0.00043473,120]
[400593386,1767736252990,-151.0,0.00043473,120]
[400593387,1767736252999,-151.0,0.00043473,120]
[400593388,1767736253008,-151.0,0.00043473,120]
[400593389,1767736253020,-151.0,0.00043473,120]
[400593390,1767736253031,-151.0,0.00043473,120]
[400593391,1767736253040,-208.797506,0.00043473,120]
[400593392,1767736253049,-151.0,0.00043473,120]
[400593393,1767736253059,-269.498513,0.00043473,120]
[400593394,1767736253068,-151.0,0.00043473,120]
[400593395,1767736253078,-151.0,0.00043473,120]
[400593396,1767736253087,-171.417226,0.00043473,120]
[400593397,1767736253097,-151.0,0.00043473,120]
[400593398,1767736253106,-151.0,0.00043473,120]
[400593399,1767736253116,-151.0,0.00043473,120]
[400593400,1767736253125,-151.0,0.00043473,120]
[400593401,1767736253134,-425.404921,0.00043473,2]
[400593402,1767736253144,-151.0,0.00043473,120]
[400593403,1767736253153,-425.404921,0.00043473,2]
[400593404,1767736253163,-151.0,0.00043473,120]
[400593405,1767736253172,-425.404921,0.00043473,2]
[400593406,1767736253182,-151.0,0.00043473,120]
[400593407,1767736253191,-151.0,0.00043473,120]
[400593409,1767736253201,-425.404921,0.00043473,2]
[400593410,1767736253211,-151.0,0.00043473,120]
[400593411,1767736253221,-425.404921,0.00043473,2]
[400593412,1767736253230,-151.0,0.00043473,120]
[400593413,1767736253239,-425.404921,0.00043473,2]
[400593414,1767736253249,-237.536271,0.00043473,120]
[400593416,1767736253258,-151.0,0.00043473,120]
[400593417,1767736253268,-425.404921,0.00043473,2]
[400593418,1767736253277,-592.079702,0.00043473,120]
[400593419,1767736253287,-151.0,0.00043473,120]
[400593421,1767736253296,-592.079702,0.00043473,120]
[400593422,1767736253305,-151.0,0.00043473,120]
[400593423,1767736253315,-425.404921,0.00043473,2]
[400593424,1767736253323,-592.079702,0.00043473,120]
[400593425,1767736253332,-151.0,0.00043473,120]
[400593426,1767736253341,-425.404921,0.00043473,2]
[400593427,1767736253354,-592.079702,0.00043473,120]
[400593428,1767736253363,-151.0,0.00043473,120]
[400593429,1767736253372,-592.079702,0.00043473,120]
[400593430,1767736253381,-425.404921,0.00043473,2]
[400593431,1767736253390,-151.0,0.00043473,120]
[400593432,1767736253400,-425.404921,0.00043473,2]
[400593433,1767736253409,-592.079702,0.00043473,120]
[400593434,1767736253419,-151.0,0.00043473,120]
[400593435,1767736253428,-592.079702,0.00043473,120]
[400593436,1767736253438,-425.404921,0.00043473,2]
[400593437,1767736253448,-151.0,0.00043473,120]
[400593438,1767736253457,-592.079702,0.00043473,120]
[400593439,1767736253466,-425.404921,0.00043473,2]
[400593440,1767736253476,-151.0,0.00043473,120]
[400593441,1767736253485,-151.0,0.00043473,120]
[400593443,1767736253495,-592.079702,0.00043473,120]
[400593444,1767736253506,-286.102326,0.00043473,120]
[400593445,1767736253516,-425.404921,0.00043473,2]
[400593446,1767736253526,-154.15688,0.00043473,120]
[400593447,1767736253536,-592.079702,0.00043473,120]
[400593448,1767736253546,-425.404921,0.00043473,2]
[400593449,1767736253556,-592.079702,0.00043473,120]
[400593450,1767736253566,-425.404921,0.00043473,2]
[400593451,1767736253576,-592.079702,0.00043473,120]
[400593452,1767736253586,-425.404921,0.00043473,2]
[400593453,1767736253596,-592.079702,0.00043473,120]
[400593454,1767736253606,-425.404921,0.00043473,2]
[400593455,1767736253616,-151.0,0.00043473,120]
[400593457,1767736253626,-592.079702,0.00043473,120]
[400593458,1767736253635,-425.404921,0.00043473,2]
[400593459,1767736253644,-151.0,0.00043473,120]
[400593461,1767736253653,-592.079702,0.00043473,120]
[400593462,1767736253663,-425.404927,0.00043473,2]
[400593463,1767736253672,-151.0,0.00043473,120]
[400593464,1767736253682,-592.079702,0.00043473,120]
[400593465,1767736253691,-151.0,0.00043473,120]
[400593466,1767736253701,-592.079702,0.00043473,120]
[400593467,1767736253710,-151.0,0.00043473,120]
[400593468,1767736253720,-592.079702,0.00043473,120]
[400593470,1767736253730,-151.0,0.00043473,120]
[400593472,1767736253740,-592.079702,0.00043473,120]
[400593473,1767736253752,-151.0,0.00043473,120]
[400593475,1767736253761,-592.079695,0.00043473,120]
[400593476,1767736253771,-151.0,0.00043473,120]
[400593477,1767736253780,-151.0,0.00043473,120]
[400593478,1767736253790,-151.0,0.00043473,120]
[400593479,1767736253800,-151.0,0.00043473,120]
[400593480,1767736253809,-151.0,0.00043473,120]
[400593481,1767736253819,-151.0,0.00043473,120]
[400593482,1767736253828,-162.638011,0.00043473,120]
[400593483,1767736253838,-151.0,0.00043473,120]
[400593484,1767736253847,-151.0,0.00043473,120]
[400593485,1767736253857,-151.0,0.00043473,120]
[400593486,1767736253867,-151.0,0.00043473,120]
[400593487,1767736253876,-151.0,0.00043473,120]
[400593488,1767736253886,-151.0,0.00043473,120]
[400593489,1767736253896,-151.0,0.00043473,120]
[400593490,1767736253906,-151.0,0.00043473,120]
[400593491,1767736253916,-151.0,0.00043473,120]
[400593492,1767736253926,-151.0,0.00043473,120]
[400593493,1767736253935,-151.0,0.00043473,120]
[400593494,1767736253947,-151.0,0.00043473,120]
[400593495,1767736253957,-151.0,0.00043473,120]
[400593496,1767736253967,-151.0,0.00043473,120]
[400593497,1767736253977,-224.27226,0.00043473,120]
[400593498,1767736253987,-151.0,0.00043473,120]
[400593499,1767736253998,-154.15747,0.00043473,120]
[400593500,1767736254008,-151.0,0.00043473,120]
[400593501,1767736254017,-151.0,0.00043473,120]
[400593502,1767736254029,-151.0,0.00043473,120]
[400593503,1767736254039,-151.0,0.00043473,120]
[400593504,1767736254048,-151.0,0.00043473,120]
[400593505,1767736254058,-151.0,0.00043473,120]
[400593506,1767736254067,-151.0,0.00043473,120]
[400593507,1767736254077,-151.0,0.00043473,120]
[400593508,1767736254087,-151.0,0.00043473,120]
[400593509,1767736254097,-151.0,0.00043473,120]
[400593510,1767736254106,-151.0,0.00043473,120]
[400593511,1767736254116,-151.0,0.00043473,120]
[400593512,1767736254126,-151.0,0.00043473,120]
[400593513,1767736254136,-151.0,0.00043473,120]
[400593514,1767736254149,-151.0,0.00043473,120]
[400593515,1767736254159,-151.0,0.00043473,120]
[400593516,1767736254169,-151.0,0.00043473,120]
[400593517,1767736254179,-250.397616,0.00043473,120]
[400593518,1767736254189,-187.952465,0.00043473,120]
[400593519,1767736254199,-151.0,0.00043473,120]
[400593520,1767736254209,-151.0,0.00043473,120]
[400593521,1767736254220,-151.0,0.00043473,120]
[400593522,1767736254230,-151.0,0.00043473,120]
[400593523,1767736254241,-151.0,0.00043473,120]
[400593524,1767736254251,-151.0,0.00043473,120]
[400593525,1767736254262,-151.0,0.00043473,120]
[400593526,1767736254272,-167.374059,0.00043473,120]
[400593527,1767736254282,-330.732476,0.00043473,120]
[400593528,1767736254292,-330.732476,0.00043473,120]
[400593529,1767736254302,-330.732476,0.00043473,120]
[400593530,1767736254312,-330.732476,0.00043473,120]
[400593531,1767736254323,-267.915069,0.00043473,120]
[400593532,1767736254333,-330.732476,0.00043473,120]
[400593533,1767736254343,-330.732476,0.00043473,120]
[400593534,1767736254354,-330.732476,0.00043473,120]
[400593535,1767736254364,-330.732476,0.00043473,120]
[400593536,1767736254374,-330.732476,0.00043473,120]
[400593537,1767736254384,-330.732476,0.00043473,120]
[400593538,1767736254395,-330.732476,0.00043473,120]
[400593539,1767736254404,-330.732476,0.00043473,120]
[400593540,1767736254414,-330.732476,0.00043473,120]
[400593541,1767736254425,-330.732476,0.00043473,120]
[400593542,1767736254435,-330.732476,0.00043473,120]
[400593543,1767736254445,-330.732476,0.00043473,120]
[400593544,1767736254456,-330.732476,0.00043473,120]
[400593545,1767736254465,-330.732476,0.00043473,120]
[400593546,1767736254475,-330.732476,0.00043473,120]
[400593547,1767736254485,-330.732476,0.00043473,120]
[400593548,1767736254495,-193.501507,0.00043473,90]
[400593549,1767736254507,-151.0,0.00043473,30]
[400593550,1767736254518,-151.0,0.00043473,30]
[400593551,1767736254528,-151.0,0.00043473,30]
[400593552,1767736254541,-151.0,0.00043473,30]
[400593553,1767736254551,-151.0,0.00043473,120]
[400593554,1767736254562,-151.0,0.00043473,120]
[400593555,1767736254571,-270.493476,0.00043473,120]
[400593556,1767736254581,-542.495097,0.00043473,28]
[400593557,1767736254591,-542.495097,0.00043473,28]
[400593558,1767736254600,-542.495097,0.00043473,28]
[400593559,1767736254609,-542.495097,0.00043473,28]
[400593560,1767736254618,-542.495097,0.00043473,28]
[400593561,1767736254628,-542.495097,0.00043473,28]
[400593562,1767736254637,-542.495097,0.00043473,28]
[400593563,1767736254647,-542.495097,0.00043473,28]
[400593564,1767736254657,-542.495097,0.00043473,28]
[400593565,1767736254667,-542.495097,0.00043473,28]
[400593566,1767736254676,-542.495097,0.00043473,28]